fUSD/lending_fUSD_20250312
["ID","MTS","AMOUNT","RATE_DAILY","PERIOD"]
[355992423,1741782637692,-1671.86202437,9.9e-05,2]
[355992425,1741782637704,-665.2855,9.9e-05,2]
[355992427,1741782637722,-279.96452425,9.9e-05,2]
[355992428,1741782637735,-2967.55537307,9.9e-05,2]
[355992429,1741782637747,-1508.08260215,9.9e-05,2]
[355992430,1741782637773,-1853.85910416,9.9e-05,2]
[355992432,1741782637786,-4438.913172,9.9e-05,2]
[355992434,1741782637796,-1768.2614,9.9e-05,2]
[355992435,1741782637807,-150.0,9.95e-05,2]
[355992436,1741782637818,-500.54266395,9.973e-05,2]
[355992437,1741782637829,-1176.91790762,9.988e-05,2]
[355992438,1741782637840,-165670.14837528,9.998e-05,2]
[355992439,1741782637851,-6600.87018477,9.998e-05,2]
[355992440,1741782637864,-416.90251517,9.998e-05,2]
[355992442,1741782637885,-1050.0,9.998e-05,2]
[355992443,1741782637896,-2000.0,9.998e-05,2]
[355992444,1741782637908,-73667.12566317,9.998e-05,2]
[355992445,1741782637921,-254.98149638,9.998e-05,2]
[355992446,1741782637937,-1199.03640389,9.998e-05,2]
[355992447,1741782637950,-949.94196682,9.998e-05,2]
[355992448,1741782637970,-550.05803318,9.998e-05,2]
[355992449,1741782637987,-684.47309792,9.998e-05,2]
[355992450,1741782638020,-18215.71866258,9.998e-05,2]
[355992468,1741782639556,-624.75803471,9.998e-05,2]
[355992469,1741782639731,-4305.08258788,9.998e-05,2]
[355992470,1741782639744,-711.86101563,9.998e-05,2]
[355992471,1741782639758,-16152.85841422,9.998e-05,2]
[355992472,1741782639771,-31623.40635431,9.998e-05,2]
[355992473,1741782639782,-500.0,9.999e-05,2]
[355992474,1741782639794,-500.0,9.999e-05,2]
[355992475,1741782639805,-500.0,9.999e-05,2]
[355992476,1741782639816,-500.0,9.999e-05,2]
[355992477,1741782639827,-500.0,9.999e-05,2]
[355992478,1741782639838,-500.0,9.999e-05,2]
[355992479,1741782639849,-500.0,9.999e-05,2]
[355992480,1741782639859,-500.0,9.999e-05,2]
[355992481,1741782639870,-500.0,9.999e-05,2]
[355992482,1741782639882,-500.0,9.999e-05,2]
[355992483,1741782639893,-500.0,9.999e-05,2]
[355992484,1741782639903,-500.0,9.999e-05,2]
[355992485,1741782639913,-500.0,9.999e-05,2]
[355992486,1741782639926,-500.0,9.999e-05,2]
[355992487,1741782639936,-500.0,9.999e-05,2]
[355992488,1741782639946,-500.0,9.999e-05,2]
[355992489,1741782639956,-500.0,9.999e-05,2]
[355992490,1741782639974,-500.0,9.999e-05,2]
[355992491,1741782639985,-500.0,9.999e-05,2]
[355992492,1741782639995,-13.37662431,9.999e-05,2]
[355992493,1741782640031,-544.14337569,9.999e-05,2]
[355992494,1741782640042,-14.40482322,9.999e-05,2]
[355992495,1741782640055,-56230.51517678,9.999e-05,2]
[355992496,1741782640066,-500.0,9.999e-05,2]
[355992497,1741782640076,-530.0,0.0001,2]
[355992498,1741782640086,-13974.42556722,0.0001,2]
[355992499,1741782640098,-1545283.76257331,0.0001,2]
[355992500,1741782640132,-457510.02722305,0.0001,2]
[355992501,1741782640163,-4653.745843,0.0001,2]
[355992520,1741782642681,-20500.03629618,0.0001,2]
[355992522,1741782642744,-2004.6266328,0.0001,2]
[355992523,1741782642810,-339.85738911,0.0001,2]
[355992524,1741782643005,-8393.73842658,0.0001,2]
[355992525,1741782643017,-3520.103004,0.0001,2]
[355992526,1741782643036,-1112.9197,0.0001,2]
[355992559,1741782645612,-564.18,9.898e-05,2]
[355992562,1741782645625,-332.9293,9.898e-05,2]
[355992564,1741782645636,-3799.3562259,0.0001,2]
[355992579,1741782645796,-3128.80347498,0.0001,2]
[355992582,1741782645812,-2590.60950991,0.0001,2]
[355992584,1741782645824,-900.79525043,0.0001,2]
[355992638,1741782760635,778.79,8.219e-05,2]
[355992639,1741782807190,500.0,0.00028576,120]
[355992640,1741783059306,-460.56438774,9.28e-05,2]
[355992641,1741783080750,1015.33606798,0.00028582,120]
[355992642,1741783081126,-164.96,9.28e-05,2]
[355992643,1741783092549,-250.0,9.238e-05,2]
[355992645,1741783143983,-354.74751683,9.238e-05,2]
[355992647,1741783239904,456.44129,8.941e-05,2]
[355992649,1741783406207,541.582254,0.00028579,120]
[355992650,1741783461494,500.0,0.00028582,120]
[355992651,1741783760493,1073.58381708,8.899e-05,2]
[355992652,1741783760515,112.62618292,8.899e-05,2]
[355992680,1741783831621,-687.21506909,8.977e-05,2]
[355992682,1741783831632,-812.78493091,8.977e-05,2]
[355992684,1741783831642,-118.15774234,9.058e-05,2]
[355992685,1741783831685,-1862.80225766,9.058e-05,2]
[355992686,1741783831695,-1426.69,9.063e-05,2]
[355992687,1741783831704,-1000.0,9.083e-05,2]
[355992688,1741783831713,-163.35,9.129e-05,2]
[355992689,1741783831723,-250.0,9.15e-05,2]
[355992690,1741783831732,-190.93,9.176e-05,2]
[355992691,1741783831742,-164.96,9.219e-05,2]
[355992692,1741783831751,-88.28248317,9.238e-05,2]
[355992693,1741783831760,-150.0,9.26e-05,2]
[355992694,1741783831769,-1883.65561226,9.28e-05,2]
[355992695,1741783831778,-530.76,9.293e-05,2]
[355992696,1741783831788,-300.0,9.403e-05,2]
[355992697,1741783831800,-2925.946727,9.404e-05,2]
[355992698,1741783831810,-500.0,9.452e-05,2]
[355992699,1741783831819,-2413.62369856,9.848e-05,2]
[355992700,1741783831850,-7082.37630144,9.848e-05,2]
[355992701,1741783831859,-300.0,9.85e-05,2]
[355992702,1741783831868,-808.3635,9.898e-05,2]
[355992703,1741783831877,-438.33,9.899e-05,2]
[355992704,1741783831887,-223.1545,9.899e-05,2]
[355992705,1741783831897,-226.4575,9.899e-05,2]
[355992706,1741783831906,-2234.6865,9.9e-05,2]
[355992707,1741783831916,-13057.761,9.9e-05,2]
[355992708,1741783831925,-2830.842,9.9e-05,2]
[355992709,1741783831935,-165.697,9.9e-05,2]
[355992710,1741783831944,-305.345,9.9e-05,2]
[355992711,1741783831954,-1009.0,9.9e-05,2]
[355992712,1741783831964,-1018.2581,9.91e-05,2]
[355992713,1741783831973,-150.0,9.939e-05,7]
[355992714,1741783831982,-252.59147164,9.989e-05,2]
[355992715,1741783831992,-138296.04818138,9.999e-05,2]
[355992716,1741783832001,-500.0,9.999e-05,2]
[355992717,1741783832010,-500.0,9.999e-05,2]
[355992718,1741783832020,-50476.14266804,0.0001,2]
[355992719,1741783832029,-424786.16599493,0.0001,2]
[355992720,1741783832038,-150.44669492,0.0001,2]
[355992721,1741783832049,-215.16613755,0.0001,2]
[355992722,1741783832059,-26973.16509681,0.0001,2]
[355992723,1741783832070,-422.91414,0.0001,2]
[355992724,1741783832081,-8401.99999999,0.0001,2]
[355992726,1741783832091,-84224.33184582,0.0001,2]
[355992729,1741783832106,-1104.26443908,0.0001,2]
[355992731,1741783832121,-148069.55434108,0.0001,2]
[355992733,1741783832132,-263.14,0.0001,2]
[355992735,1741783832144,-922.54233573,0.0001,2]
[355992815,1741783837773,-67046.80800002,0.0001,2]
[355992816,1741783837784,-84300.0,0.0001,2]
[355992817,1741783837797,-307.72833441,0.0001,2]
[355992818,1741783837812,-16882.740382,0.0001,2]
[355992819,1741783837824,-17957.70500243,0.0001,2]
[355992820,1741783837871,-620.22229159,0.0001,2]
[355992821,1741783837882,-3381.99203081,0.0001,2]
[355992822,1741783837894,-1038.72,0.0001,2]
[355992823,1741783837904,-2363.90591788,0.0001,2]
[355992824,1741783837915,-429.76989505,0.0001,2]
[355992863,1741783839837,-421.22235763,0.0001,2]
[355992864,1741783839896,-1616518.70331731,0.0001,2]
[355992865,1741783839908,-5490.51305092,0.0001,2]
[355992866,1741783839919,-6409.48694908,0.0001,2]
[355992867,1741783839986,-0.0022612,0.0001,2]
[355992868,1741783840118,-86253.14186,0.0001,2]
[355992870,1741783842739,-41450.46633626,0.0001,2]
[355992871,1741783842800,-5981.73153865,0.0001,2]
[355992878,1741783844367,-1305.2052001,0.0001,2]
[355992879,1741783844379,-915.44,0.0001,2]
[355992881,1741783845705,-564.81,0.0001,2]
[355992882,1741783845818,-564.9,0.0001,2]
[355992883,1741783845830,-449.41816165,0.0001,2]
[355992884,1741783845841,-13573.69999998,0.0001,2]
[355992885,1741783845879,-7710.12545215,0.0001,2]
[355992886,1741783845890,-9696.67586002,0.0001,2]
[355992887,1741783845943,-23887.54221101,0.0001,2]
[355992888,1741783845955,-2645.50949914,0.0001,2]
[355992889,1741783845966,-1889.04281577,0.0001,2]
[355992890,1741783845976,-829.5836,0.0001,2]
[355992891,1741783846048,-25304.30810652,0.0001,2]
[355992894,1741783994006,770.83,8.525e-05,2]
[355992897,1741784917144,-550.0,9e-05,2]
[355992898,1741784917172,-964.71833744,9.32e-05,2]
[355992917,1741785031880,-300.0,9.267e-05,2]
[355992918,1741785031890,-23900.0,9.268e-05,2]
[355992919,1741785031899,-177.03,9.301e-05,2]
[355992920,1741785031909,-35.28166256,9.32e-05,2]
[355992921,1741785031918,-679.8818322,9.7e-05,2]
[355992922,1741785031928,-2264.674,9.8e-05,2]
[355992923,1741785031938,-3096.0438,9.9e-05,2]
[355992924,1741785031947,-936.6378,9.9e-05,2]
[355992925,1741785031956,-500.0,9.9e-05,2]
[355992926,1741785031966,-5626.84698491,9.908e-05,2]
[355992927,1741785031975,-312.57,9.966e-05,2]
[355992928,1741785031984,-250.0,9.992e-05,2]
[355992929,1741785031994,-937.82461428,9.999e-05,3]
[355992930,1741785032003,-500.0,9.999e-05,2]
[355992931,1741785032012,-3613.59,9.999e-05,2]
[355992932,1741785032022,-150.99,9.999e-05,2]
[355992933,1741785032031,-500.0,9.999e-05,2]
[355992934,1741785032041,-362.04000336,9.999e-05,2]
[355992935,1741785032052,-377.16494571,9.999e-05,2]
[355992936,1741785032061,-29693.30112614,0.0001,2]
[355992937,1741785032071,-52495.07724349,0.0001,2]
[355992938,1741785032130,-2526.78,0.0001,2]
[355992939,1741785032155,-193087.163134,0.0001,2]
[355992940,1741785032166,-16838.4,0.0001,2]
[355992941,1741785032190,-11427.83974767,0.0001,2]
[355992942,1741785032235,-1480.47571765,0.0001,2]
[355992953,1741785037713,-1105.0,0.0001,2]
[355992956,1741785037835,-278.24999975,0.0001,2]
[355992957,1741785037988,-5219.99999,0.0001,2]
[355992958,1741785038001,-1030.07904,0.0001,2]
[355993088,1741785039953,-777.30004535,0.0001,2]
[355993089,1741785039965,-316551.35801475,0.0001,2]
[355993090,1741785039976,-324.31961641,0.0001,2]
[355993091,1741785040015,-1143.1324905,0.0001,2]
[355993092,1741785040027,-25297.20000001,0.0001,2]
[355993093,1741785040147,-1950.0,0.0001,2]
[355993094,1741785040159,-1616518.70331731,0.0001,2]
[355993095,1741785040183,-1376.2714883,0.0001,2]
[355993096,1741785040202,-24488.756204,0.0001,2]
[355993097,1741785040215,-34430.93862785,0.0001,2]
[355993098,1741785040331,-311.26588213,0.0001,2]
[355993099,1741785040344,-903.46001533,0.0001,2]
[355993100,1741785040355,-1562.69750535,0.0001,2]
[355993101,1741785040369,-531.00827507,0.0001,2]
[355993102,1741785040398,-2100.05512954,0.0001,2]
[355993103,1741785040409,-4128.97177876,0.0001,2]
[355993104,1741785040420,-377.63072068,0.0001,2]
[355993113,1741785042869,-126612.55885808,0.0001,2]
[355993114,1741785042934,-2079.549906,0.0001,2]
[355993115,1741785042980,-7719.11871088,0.0001,2]
[355993132,1741785044248,-863.786817,0.0001,2]
[355993139,1741785046020,-1011.25530328,0.0001,2]
[355993140,1741785046153,-484.9,0.0001,2]
[355993141,1741785046193,-1938.23795125,0.0001,2]
[355993142,1741785046205,-1131.14012457,0.0001,2]
[355993143,1741785046252,-12410.69653987,0.0001,2]
[355993144,1741785046263,-33739.9962398,0.0001,2]
[355993145,1741785055637,-320.79212886,9.9e-05,2]
[355993146,1741785090668,-679.20787114,9.9e-05,2]
[355993147,1741785090697,-1690.79212886,9.91e-05,2]
[355993148,1741785108437,-500.0,9.9e-05,2]
[355993149,1741785108460,-2800.0,9.91e-05,2]
[355993150,1741785512842,-209.24296631,9.8e-05,2]
[355993151,1741785573349,761.72,8.219e-05,2]
[355993153,1741785751258,171.46,7.224e-05,2]
[355993154,1741785851263,153.0,0.0002858,120]
[355993155,1741785860712,161.20701658,8.5e-05,30]
[355993156,1741785887909,250.0,0.00028,120]
[355993157,1741785900721,250.0,0.00028,120]
[355993158,1741785912784,204.0,0.00028,120]
[355993159,1741785955885,492.17892416,8.188e-05,2]
[355993160,1741785955915,2308.81510708,8.188e-05,2]
[355993161,1741785955939,497.63162028,8.188e-05,2]
[355993235,1741786020842,1000.0,8.728e-05,2]
[355993236,1741786031569,23900.0,8.731e-05,2]
[355993280,1741786092946,-550.0,9e-05,2]
[355993282,1741786092977,-150.0,9.452e-05,2]
[355993284,1741786093006,-150.0,9.464e-05,2]
[355993285,1741786093036,-150.0,9.478e-05,2]
[355993286,1741786093066,-150.0,9.481e-05,2]
[355993288,1741786093095,-285.44601277,9.486e-05,2]
[355993290,1741786093124,-150.0,9.507e-05,2]
[355993291,1741786093152,-150.0,9.514e-05,2]
[355993292,1741786093179,-150.0,9.525e-05,2]
[355993293,1741786093206,-150.0,9.555e-05,2]
[355993294,1741786093232,-1111.74,9.555e-05,2]
[355993295,1741786093261,-150.0,9.556e-05,2]
[355993296,1741786093289,-150.0,9.566e-05,2]
[355993297,1741786093316,-150.0,9.574e-05,2]
[355993298,1741786093343,-150.0,9.575e-05,2]
[355993299,1741786093370,-150.0,9.581e-05,2]
[355993300,1741786093401,-150.0,9.598e-05,2]
[355993301,1741786093428,-150.0,9.606e-05,2]
[355993302,1741786093455,-150.0,9.606e-05,2]
[355993303,1741786093482,-150.0,9.607e-05,2]
[355993304,1741786093508,-150.0,9.629e-05,2]
[355993305,1741786093538,-150.0,9.662e-05,2]
[355993306,1741786093566,-150.0,9.668e-05,2]
[355993307,1741786093593,-150.0,9.669e-05,2]
[355993308,1741786093621,-150.0,9.672e-05,2]
[355993309,1741786093648,-150.0,9.674e-05,2]
[355993310,1741786093677,-150.0,9.685e-05,2]
[355993311,1741786093703,-300.0,9.685e-05,2]
[355993312,1741786093730,-115.82728889,9.688e-05,2]
[355993330,1741786195166,-373.24,9.252e-05,2]
[355993331,1741786195194,-373.24,9.276e-05,2]
[355993332,1741786195222,-373.24,9.301e-05,2]
[355993333,1741786195248,-373.24,9.325e-05,2]
[355993334,1741786195274,-373.24,9.349e-05,2]
[355993335,1741786195301,-373.24,9.374e-05,2]
[355993336,1741786195327,-373.24,9.398e-05,2]
[355993337,1741786195352,-373.24,9.422e-05,2]
[355993338,1741786195380,-373.24,9.447e-05,2]
[355993339,1741786195407,-373.24,9.471e-05,2]
[355993340,1741786195433,-373.24,9.495e-05,2]
[355993341,1741786195460,-373.24,9.52e-05,2]
[355993342,1741786195695,-293.1499569,9.544e-05,2]
[355993358,1741786232202,-80.0900431,9.544e-05,2]
[355993359,1741786232212,-150.0,9.562e-05,7]
[355993360,1741786232222,-61.4449373,9.569e-05,2]
[355993361,1741786232234,-311.7950627,9.569e-05,2]
[355993362,1741786232243,-373.24,9.593e-05,2]
[355993363,1741786232253,-373.24,9.617e-05,2]
[355993364,1741786232262,-373.24,9.642e-05,2]
[355993365,1741786232272,-373.24,9.666e-05,2]
[355993366,1741786232282,-34.17271111,9.688e-05,2]
[355993367,1741786232291,-150.0,9.689e-05,2]
[355993368,1741786232300,-373.24,9.69e-05,2]
[355993369,1741786232310,-150.0,9.695e-05,2]
[355993370,1741786232319,-150.0,9.698e-05,2]
[355993371,1741786232329,-700.185,9.7e-05,2]
[355993372,1741786232338,-373.24,9.715e-05,2]
[355993373,1741786232348,-150.0,9.717e-05,2]
[355993374,1741786232357,-897.19445788,9.746e-05,2]
[355993375,1741786232370,-1602.49603369,9.8e-05,2]
[355993376,1741786232380,-170.921,9.8e-05,2]
[355993377,1741786232390,-150.0,9.809e-05,2]
[355993378,1741786232399,-1000.0,9.819e-05,2]
[355993379,1741786232409,-1000.0,9.903e-05,2]
[355993380,1741786232420,-4971.83760586,9.91e-05,2]
[355993381,1741786232429,-250.0,9.953e-05,2]
[355993382,1741786232440,-26997.32100198,9.998e-05,2]
[355993383,1741786232449,-500.0,9.999e-05,2]
[355993384,1741786232459,-500.0,9.999e-05,2]
[355993385,1741786232468,-500.0,9.999e-05,2]
[355993386,1741786232479,-500.0,9.999e-05,2]
[355993387,1741786232488,-525.0,0.0001,2]
[355993388,1741786232498,-16963.66708309,0.0001,2]
[355993389,1741786232508,-258877.01628412,0.0001,2]
[355993404,1741786232779,-2605.21471463,0.0001,2]
[355993408,1741786232838,-874.96260798,0.0001,2]
[355993410,1741786232865,-2715.57995216,0.0001,2]
[355993412,1741786232893,-586.2,0.0001,2]
[355993416,1741786232953,-305.72859,0.0001,2]
[355993421,1741786233037,-314.0,0.0001,2]
[355993425,1741786233065,-516.32256594,0.0001,2]
[355993427,1741786233077,-305.72859,0.0001,2]
[355993453,1741786237957,-19959.46145475,0.0001,2]
[355993454,1741786238060,-1372.0815694,0.0001,2]
[355993455,1741786238072,-990.70591686,0.0001,2]
[355993468,1741786238323,-857899.75211298,0.0001,2]
[355993470,1741786238335,-1731.16,0.0001,2]
[355993472,1741786238347,-402.6665452,0.0001,2]
[355993474,1741786238358,-1921.89,0.0001,2]
[355993477,1741786238375,-16726.688,0.0001,2]
[355993642,1741786240086,-291.15390028,0.0001,2]
[355993666,1741786240328,-535672.06173255,0.0001,2]
[355993669,1741786240338,-478.41778354,0.0001,2]
[355993670,1741786240348,-253.7,0.0001,2]
[355993673,1741786240358,-1080114.52380122,0.0001,2]
[355994076,1741786244183,-359.35872871,0.0001,2]
[355994079,1741786244200,-159536.79825919,0.0001,2]
[355994269,1741786246144,-836.5,0.0001,2]
[355994276,1741786246209,-438.16815009,0.0001,2]
[355994278,1741786246222,-10962.6874109,0.0001,2]
[355994629,1741786601472,762.58,8.65e-05,2]
[355994634,1741787395558,402.3468836,0.00027,120]
[355994635,1741787395582,188.36060797,0.00027,120]
[355994640,1741787432208,-150.0,9.748e-05,2]
[355994641,1741787432218,-150.0,9.973e-05,2]
[355994642,1741787432227,-130.25086577,9.998e-05,2]
[355994643,1741787432239,-19.74913423,9.998e-05,2]
[355994644,1741787432248,-9180.25086577,9.999e-05,2]
[355994645,1741787432421,-467.06727,9.999e-05,2]
[355994646,1741787432502,-12527.46495001,9.999e-05,2]
[355994722,1741787438251,-511.64502855,9.999e-05,2]
[355994723,1741787438262,-1020.54006,9.999e-05,2]
[355994724,1741787438273,-32510.43182567,9.999e-05,2]
[355994725,1741787438282,-500.0,9.999e-05,2]
[355994726,1741787438292,-481.41154024,0.0001,2]
[355994727,1741787438359,-96.58845976,0.0001,2]
[355994728,1741787438369,-186.5240381,0.0001,2]
[355994730,1741787438430,-1272.01274265,0.0001,2]
[355994732,1741787438441,-949.74851098,0.0001,2]
[355994905,1741787440231,-2439.03122325,0.0001,2]
[355994921,1741787440375,-4200.0,0.0001,2]
[355994933,1741787440484,-11197.52461001,0.0001,2]
[355994935,1741787440494,-1605321.1787073,0.0001,2]
[355994939,1741787440519,-414.54,0.0001,2]
[355994941,1741787440532,-1466.43173063,0.0001,2]
[355994943,1741787440544,-3364.81692329,0.0001,2]
[355995398,1741787444966,-10688.81995627,0.0001,2]
[355995400,1741787444978,-374.43122639,0.0001,2]
[355995538,1741787446229,-346.77531007,0.0001,2]
[355995540,1741787446240,-15491.14535,0.0001,2]
[355995542,1741787446251,-13343.90000003,0.0001,2]
[355995549,1741787446310,-833.8,0.0001,2]
[355995551,1741787446321,-505.54484338,0.0001,2]
[355995557,1741787446406,-1868.98079502,0.0001,2]
[355995558,1741787446462,-5988.51591907,0.0001,2]
[355995559,1741787446473,-308.52728984,0.0001,2]
[355995560,1741787446483,-1429.75823956,0.0001,2]
[355995795,1741787650683,-460.56438774,9e-05,2]
[355995796,1741787686123,742.01,8.303e-05,2]
[355995797,1741787853200,500.0,0.00027397,120]
[355995798,1741787853473,500.0,0.00027397,120]
[355995799,1741787853737,500.0,0.00027397,120]
[355995800,1741787854018,280.05,0.00027397,120]
[355995801,1741788189443,-89.43561226,9e-05,2]
[355995802,1741788189473,-75.52438774,9e-05,2]
[355995818,1741788593414,-6177.71416683,9e-05,2]
[355995819,1741788593466,-3405.76144543,9e-05,2]
[355995820,1741788593493,-2771.9527214,9.338e-05,2]
[355995821,1741788593556,-1178.88287381,9.338e-05,2]
[355995832,1741788632488,-250.05,9.303e-05,2]
[355995833,1741788632500,-300.0,9.337e-05,2]
[355995834,1741788632510,-64.41,9.338e-05,2]
[355995835,1741788632521,-19884.75440479,9.338e-05,2]
[355995836,1741788632531,-176.33,9.346e-05,2]
[355995837,1741788632540,-460.57,9.429e-05,2]
[355995838,1741788632550,-2651.16054863,9.517e-05,2]
[355995839,1741788632560,-500.0,9.534e-05,2]
[355995840,1741788632569,-500.0,9.726e-05,2]
[355995841,1741788632579,-150.0,9.899e-05,2]
[355995842,1741788632588,-3830.7962,9.9e-05,2]
[355995843,1741788632597,-350.6515,9.9e-05,2]
[355995844,1741788632607,-543.2609,9.9e-05,2]
[355995845,1741788632616,-810.013,9.9e-05,2]
[355995846,1741788632626,-550.0,9.9e-05,2]
[355995847,1741788632638,-150.0,9.9e-05,2]
[355995848,1741788632647,-550.0,9.9e-05,2]
[355995849,1741788632657,-150.0,9.9e-05,2]
[355995850,1741788632666,-7161.7390948,9.91e-05,2]
[355995851,1741788632676,-606.0,9.918e-05,2]
[355995852,1741788632687,-318.47612982,9.995e-05,2]
[355995853,1741788632697,-3883.5316527,9.995e-05,2]
[355995854,1741788632707,-604.79948188,9.999e-05,3]
[355995855,1741788632718,-1000.0,9.999e-05,2]
[355995856,1741788632729,-500.0,9.999e-05,2]
[355995857,1741788632738,-500.0,9.999e-05,2]
[355995858,1741788632751,-500.0,9.999e-05,2]
[355995859,1741788632760,-500.0,9.999e-05,2]
[355995860,1741788632770,-500.0,9.999e-05,2]
[355995861,1741788632779,-500.0,9.999e-05,2]
[355995862,1741788632788,-273.12,9.999e-05,2]
[355995863,1741788632798,-726.0,0.0001,2]
[355995864,1741788632808,-28556.37726879,0.0001,2]
[355995865,1741788632817,-88794.54122593,0.0001,2]
[355995866,1741788633080,-578.6525812,0.0001,2]
[355995867,1741788633105,-1771.82759814,0.0001,2]
[355995868,1741788633116,-399.42903,0.0001,2]
[355995873,1741788633170,-7372.01608038,0.0001,2]
[355995878,1741788638251,-27158.15415331,0.0001,2]
[355995879,1741788638361,-1003.61994,0.0001,2]
[355995880,1741788638408,-1063.1373244,0.0001,2]
[355995881,1741788638481,-5550.9,0.0001,2]
[355995882,1741788638555,-1826.67732042,0.0001,2]
[355995883,1741788638566,-1042.82955653,0.0001,2]
[355995884,1741788638577,-19065.16458459,0.0001,2]
[355996096,1741788640608,-320.12,0.0001,2]
[355996313,1741788642848,-229.88,0.0001,2]
[355996315,1741788642858,-1349.55175752,0.0001,2]
[355996317,1741788642869,-368.16999,0.0001,2]
[355996344,1741788643117,-52.83584873,0.0001,2]
[355996348,1741788643142,-1616518.70332415,0.0001,2]
[355996357,1741788643227,-0.00226414,0.0001,2]
[355996392,1741788643467,-12596.768438,0.0001,2]
[355996405,1741788643543,-873.04153788,0.0001,2]
[355996409,1741788643555,-276.07196702,0.0001,2]
[355996412,1741788643567,-9156.14019374,0.0001,2]
[355996419,1741788643630,-588449.29276183,0.0001,2]
[355996565,1741788645016,-604.79948188,0.0001,2]
[355996697,1741788646407,-374.55,0.0001,2]
[355996700,1741788646419,-204.45,0.0001,2]
[355996702,1741788646428,-58.15,0.0001,2]
[355996705,1741788646454,-826.52,0.0001,2]
[355996716,1741788646550,-768.650575,0.0001,2]
[355996718,1741788646562,-399037.04475735,0.0001,2]
[355996720,1741788646571,-2480.0,0.0001,2]
[355996722,1741788646581,-675616.70623885,0.0001,2]
[355996727,1741788646620,-1486.46821,0.0001,2]
[355996730,1741788646633,-664.39815717,0.0001,2]
[355996732,1741788646646,-358.22712375,0.0001,2]
[355996740,1741788646720,-1371.9392316,0.0001,2]
[355996743,1741788646732,-8466.76666947,0.0001,2]
[355996745,1741788646743,-8288.3462146,0.0001,2]
[355996747,1741788646757,-2642.81,0.0001,2]
[355996749,1741788646768,-1111.99999958,0.0001,2]
[355997058,1741789018130,704.9,8.219e-05,2]
[355997061,1741789112790,-165.699,9.8e-05,2]
[355997062,1741789118493,150.0,0.00012,30]
[355997064,1741789187758,2000.0,0.00013,30]
[355997065,1741789242235,500.0,0.00013,30]
[355997066,1741789366673,-155.09312886,9.536e-05,2]
[355997068,1741789469656,-209.24296631,9e-05,2]
[355997076,1741789555302,-150.0,9e-05,2]
[355997087,1741789728859,-190.75703369,9e-05,2]
[355997089,1741789728889,-2619.79514067,9e-05,2]
[355997090,1741789728918,-550.0,9.195e-05,2]
[355997092,1741789728949,-150.0,9.195e-05,2]
[355997094,1741789728985,-159.35,9.288e-05,2]
[355997095,1741789729014,-164.96,9.321e-05,2]
[355997096,1741789729043,-804.92353999,9.389e-05,2]
[355997098,1741789729072,-300.0,9.389e-05,2]
[355997099,1741789729100,-1508.61467663,9.39e-05,2]
[355997100,1741789729135,-6448.40039098,9.39e-05,2]
[355997101,1741789729184,-6448.40039098,9.39e-05,2]
[355997102,1741789729225,-6448.40039098,9.39e-05,2]
[355997103,1741789729274,-3046.18415043,9.39e-05,2]
[355997104,1741789729303,-844.90687114,9.536e-05,2]
[355997105,1741789729332,-2557.30936941,9.8e-05,2]
[355997106,1741789729369,-37.55663059,9.8e-05,2]
[355997107,1741789729396,-320.7921,9.9e-05,2]
[355997108,1741789729424,-267.5192,9.9e-05,2]
[355997109,1741789729453,-1456.8066,9.9e-05,2]
[355997110,1741789729480,-150.0,9.9e-05,2]
[355997111,1741789729508,-550.0,9.9e-05,2]
[355997112,1741789729537,-150.0,9.9e-05,2]
[355997113,1741789729564,-550.0,9.9e-05,2]
[355997114,1741789729591,-150.0,9.9e-05,2]
[355997115,1741789729617,-150.0,9.91e-05,2]
[355997116,1741789729643,-150.0,9.99e-05,2]
[355997117,1741789729670,-150.0,9.99e-05,2]
[355997118,1741789729696,-798.5,9.99e-05,2]
[355997119,1741789729724,-689.12,9.99e-05,2]
[355997120,1741789729751,-150.0,9.997e-05,2]
[355997121,1741789729780,-315.46409382,9.998e-05,2]